fUSD/lending_fUSD_20260217
["ID","MTS","AMOUNT","RATE_DAILY","PERIOD"]
[405771185,1771290647634,-5907.281,0.0003452,39]
[405771186,1771290647644,-471.173,0.0003452,39]
[405771187,1771290647729,-1909.39179347,0.00034521,30]
[405771188,1771290647738,-180.0,0.00034594,13]
[405771189,1771290647748,-1909.39179347,0.00034658,30]
[405771190,1771290647758,-150.0,0.00034696,2]
[405771191,1771290647767,-250.0,0.00034775,35]
[405771192,1771290647776,-250.0,0.00034775,35]
[405771193,1771290647786,-250.0,0.00034775,35]
[405771194,1771290647795,-250.0,0.00034775,35]
[405771195,1771290647804,-250.0,0.00034775,35]
[405771196,1771290647813,-250.0,0.00034775,35]
[405771197,1771290647823,-250.0,0.00034775,35]
[405771198,1771290647832,-250.0,0.00034775,35]
[405771199,1771290647842,-250.0,0.00034775,35]
[405771200,1771290647851,-250.0,0.00034775,35]
[405771201,1771290647861,-250.0,0.00034775,35]
[405771202,1771290647869,-250.0,0.00034775,35]
[405771203,1771290647878,-250.0,0.00034775,35]
[405771204,1771290647887,-250.0,0.00034775,35]
[405771205,1771290647896,-332.0,0.00034775,35]
[405771206,1771290647906,-1500.0,0.00034795,2]
[405771207,1771290647916,-1909.39179347,0.00034795,30]
[405771208,1771290647926,-502.0,0.00034798,18]
[405771209,1771290647935,-170.53,0.000348,14]
[405771210,1771290647944,-711.21,0.000348,30]
[405771211,1771290647955,-1909.39179347,0.00034932,30]
[405771212,1771290647965,-156.49,0.00035,14]
[405771213,1771290647975,-250.0,0.00035,35]
[405771214,1771290647984,-250.0,0.00035,35]
[405771215,1771290647993,-250.0,0.00035,35]
[405771216,1771290648002,-250.0,0.00035,35]
[405771217,1771290648011,-250.0,0.00035,35]
[405771218,1771290648020,-250.0,0.00035,35]
[405771219,1771290648031,-250.0,0.00035,35]
[405771220,1771290648040,-250.0,0.00035,35]
[405771221,1771290648049,-299.0,0.00035,35]
[405771222,1771290648059,-173.53171403,0.00035,30]
[405771223,1771290648068,-160.0,0.00035,30]
[405771224,1771290648076,-1909.39179347,0.00035068,30]
[405771225,1771290648086,-174127.11880081,0.000351,14]
[405771226,1771290648117,-1023.8845957,0.00020333,2]
[405771227,1771290648126,-56093.86317389,0.000351,14]
[405771228,1771290648859,-1014.75001241,0.00020333,2]
[405771229,1771290648869,-8080.4871133,0.000351,14]
[405771230,1771290648896,-1013.33466904,0.00020333,2]
[405771231,1771290648906,-2727.301776,0.000351,14]
[405771232,1771290648917,-275.99999997,0.000351,14]
[405771233,1771291022374,1784.44916224,9.2e-05,3]
[405771234,1771291022401,2457.54818612,9.2e-05,3]
[405771235,1771291022453,6287.99602254,9.2e-05,3]
[405771236,1771291022522,5264.99668545,9.2e-05,3]
[405771237,1771291022588,7310.99535963,9.2e-05,3]
[405771238,1771291022645,7310.99535963,9.2e-05,3]
[405771239,1771291227630,2565.45425308,9e-05,3]
[405771240,1771291228440,4377.04494289,9e-05,3]
[405771241,1771291228484,3652.40866696,9e-05,3]
[405771242,1771291228530,4014.72680492,9e-05,3]
[405771244,1771291391090,-1278.1228,9e-05,2]
[405771245,1771291391116,-151.0,9.097e-05,2]
[405771246,1771291391140,-225.0,9.098e-05,2]
[405771247,1771291391168,-150.0,9.098e-05,2]
[405771248,1771291391193,-300.0,9.098e-05,2]
[405771249,1771291391218,-250.0,9.099e-05,2]
[405771250,1771291391244,-209.2927216,9.099e-05,2]
[405771251,1771291391268,-500.0,9.099e-05,2]
[405771252,1771291391291,-283.83078736,9.099e-05,2]
[405771253,1771291391317,-385.85777497,9.099e-05,2]
[405771254,1771291391342,-500.0,9.099e-05,2]
[405771255,1771291391365,-219.40971288,9.099e-05,2]
[405771256,1771291391388,-408.62139134,9.099e-05,2]
[405771257,1771291391416,-159.88076059,9.099e-05,2]
[405771258,1771291391443,-500.0,9.099e-05,2]
[405771259,1771291391469,-500.0,9.099e-05,2]
[405771260,1771291391494,-500.0,9.099e-05,2]
[405771261,1771291391520,-500.0,9.099e-05,2]
[405771262,1771291391545,-500.0,9.099e-05,2]
[405771263,1771291391571,-500.0,9.099e-05,2]
[405771264,1771291391599,-500.0,9.099e-05,2]
[405771265,1771291391626,-500.0,9.099e-05,2]
[405771266,1771291391652,-500.0,9.099e-05,2]
[405771267,1771291391677,-500.0,9.099e-05,2]
[405771268,1771291391702,-470.26853482,9.099e-05,2]
[405771269,1771291391726,-500.0,9.099e-05,2]
[405771270,1771291391751,-500.0,9.099e-05,2]
[405771271,1771291391776,-500.0,9.099e-05,2]
[405771272,1771291391801,-500.0,9.099e-05,2]
[405771273,1771291391830,-500.0,9.099e-05,2]
[405771274,1771291391854,-500.0,9.099e-05,2]
[405771275,1771291391878,-500.0,9.099e-05,2]
[405771276,1771291391903,-500.0,9.099e-05,2]
[405771277,1771291391931,-500.0,9.099e-05,2]
[405771278,1771291391960,-499.99999999,9.099e-05,2]
[405771279,1771291391986,-484508.71551645,9.1e-05,2]
[405771280,1771291395918,283.63111358,9e-05,3]
[405771281,1771291395984,383.85444877,9e-05,3]
[405771282,1771291396023,343.76511469,9e-05,3]
[405771283,1771291396094,363.80978173,9e-05,3]
[405771284,1771291417480,-200000.0,8.999e-05,2]
[405771285,1771291489743,-679000.0,8.999e-05,2]
[405771286,1771291508372,5000.01,7.945e-05,2]
[405771287,1771291508462,641.862056,7.945e-05,2]
[405771290,1771291561516,10000.01,8e-05,2]
[405771291,1771291561545,8641.0452037,8e-05,2]
[405771292,1771291567799,5000.01,7.945e-05,2]
[405771293,1771291567825,521.080006,7.945e-05,2]
[405771296,1771291641270,543.18341436,0.000153,30]
[405771297,1771291641638,857.97782352,0.000153,30]
[405771302,1771291698338,392.54431992,7.888e-05,2]
[405771303,1771291760962,2277.22052133,8.7e-05,3]
[405771304,1771291761027,3872.63591234,8.7e-05,3]
[405771305,1771291761063,3234.46975594,8.7e-05,3]
[405771306,1771291761120,3553.55283414,8.7e-05,3]
[405771307,1771291804856,196.06,7.786e-05,2]
[405771314,1771291832312,-3173.22098604,8.799e-05,2]
[405771315,1771291832323,-1200.0,8.897e-05,2]
[405771316,1771291832335,-300.0,8.898e-05,2]
[405771317,1771291832346,-300.0,8.898e-05,2]
[405771318,1771291832356,-150.0,8.898e-05,2]
[405771319,1771291832366,-5907.61525661,8.898e-05,2]
[405771320,1771291832376,-500.0,8.898e-05,2]
[405771321,1771291832387,-359746.13324222,8.899e-05,2]
[405771322,1771291832398,-251726.33427204,8.899e-05,2]
[405771323,1771291832410,-1254.41808677,8.899e-05,2]
[405771336,1771291838150,-500.0,8.899e-05,2]
[405771337,1771291838286,-173133.9374874,8.899e-05,2]
[405771338,1771291838303,-2713639.17691157,8.899e-05,2]
[405771339,1771291838313,-300.0,8.997e-05,2]
[405771340,1771291838323,-10351.92431007,8.997e-05,2]
[405771341,1771291838332,-2999.87979967,8.997e-05,2]
[405771342,1771291838342,-5732.48275392,8.997e-05,2]
[405771343,1771291838352,-500.0,8.998e-05,2]
[405771344,1771291838362,-434.81980862,8.998e-05,2]
[405771345,1771291838374,-305.24624301,8.998e-05,2]
[405771346,1771291838384,-500.0,8.998e-05,2]
[405771347,1771291838393,-500.0,8.998e-05,2]
[405771348,1771291838403,-500.0,8.998e-05,2]
[405771349,1771291838412,-500.0,8.998e-05,2]
[405771350,1771291838422,-500.0,8.998e-05,2]
[405771351,1771291838432,-500.0,8.998e-05,2]
[405771352,1771291838442,-500.0,8.998e-05,2]
[405771353,1771291838451,-500.0,8.998e-05,2]
[405771354,1771291838461,-500.0,8.998e-05,2]
[405771355,1771291838471,-500.0,8.998e-05,2]
[405771356,1771291838482,-500.0,8.998e-05,2]
[405771357,1771291838492,-500.0,8.998e-05,2]
[405771358,1771291838502,-500.0,8.998e-05,2]
[405771359,1771291838511,-500.0,8.998e-05,2]
[405771360,1771291838521,-500.0,8.998e-05,2]
[405771361,1771291838531,-500.0,8.998e-05,2]
[405771362,1771291838541,-500.0,8.998e-05,2]
[405771363,1771291838551,-500.0,8.998e-05,2]
[405771364,1771291838560,-500.0,8.998e-05,2]
[405771365,1771291838570,-500.0,8.998e-05,2]
[405771367,1771291838579,-500.0,8.998e-05,2]
[405771368,1771291838589,-500.0,8.998e-05,2]
[405771369,1771291838598,-500.0,8.998e-05,2]
[405771370,1771291838608,-500.0,8.998e-05,2]
[405771371,1771291838617,-500.0,8.998e-05,2]
[405771372,1771291838628,-500.0,8.998e-05,2]
[405771373,1771291838643,-500.0,8.998e-05,2]
[405771374,1771291838653,-500.0,8.998e-05,2]
[405771375,1771291838663,-500.0,8.998e-05,2]
[405771376,1771291838672,-500.0,8.998e-05,2]
[405771377,1771291838685,-500.0,8.998e-05,2]
[405771378,1771291838695,-500.0,8.998e-05,2]
[405771379,1771291838705,-500.0,8.998e-05,2]
[405771380,1771291838715,-500.0,8.998e-05,2]
[405771381,1771291838725,-500.0,8.998e-05,2]
[405771382,1771291838736,-500.0,8.998e-05,2]
[405771383,1771291838747,-500.0,8.998e-05,2]
[405771384,1771291838758,-500.0,8.998e-05,2]
[405771385,1771291838768,-216.27560022,8.998e-05,2]
[405771386,1771291838778,-293.20974456,8.998e-05,2]
[405771387,1771291838789,-500.0,8.998e-05,2]
[405771388,1771291838799,-263.26031051,8.998e-05,2]
[405771389,1771291838811,-500.0,8.998e-05,2]
[405771390,1771291838822,-500.0,8.998e-05,2]
[405771391,1771291838831,-500.0,8.998e-05,2]
[405771392,1771291838841,-500.0,8.998e-05,2]
[405771393,1771291838851,-500.0,8.998e-05,2]
[405771394,1771291838861,-500.0,8.998e-05,2]
[405771395,1771291838873,-500.0,8.998e-05,2]
[405771396,1771291838883,-500.0,8.998e-05,2]
[405771397,1771291838893,-500.0,8.998e-05,2]
[405771398,1771291838902,-500.0,8.998e-05,2]
[405771399,1771291838912,-500.0,8.998e-05,2]
[405771400,1771291838921,-500.0,8.998e-05,2]
[405771401,1771291838931,-500.0,8.998e-05,2]
[405771402,1771291838941,-500.0,8.998e-05,2]
[405771403,1771291838950,-500.0,8.998e-05,2]
[405771404,1771291838960,-500.0,8.998e-05,2]
[405771405,1771291838970,-550.0,8.998e-05,2]
[405771406,1771291838980,-500.0,8.998e-05,2]
[405771407,1771291838989,-500.0,8.998e-05,2]
[405771408,1771291838999,-500.0,8.998e-05,2]
[405771409,1771291839009,-500.0,8.998e-05,2]
[405771410,1771291839019,-500.0,8.998e-05,2]
[405771411,1771291839029,-500.0,8.998e-05,2]
[405771412,1771291839038,-500.0,8.998e-05,2]
[405771413,1771291839048,-500.0,8.998e-05,2]
[405771414,1771291839065,-500.0,8.998e-05,2]
[405771415,1771291839075,-500.0,8.998e-05,2]
[405771416,1771291839086,-500.0,8.998e-05,2]
[405771417,1771291839098,-249.27536023,8.998e-05,2]
[405771418,1771291839108,-500.0,8.998e-05,2]
[405771419,1771291839119,-500.0,8.998e-05,2]
[405771420,1771291839129,-500.0,8.998e-05,2]
[405771421,1771291839139,-591.20287037,8.998e-05,2]
[405771422,1771291839149,-500.0,8.998e-05,2]
[405771423,1771291839159,-649.52148126,8.998e-05,2]
[405771424,1771291839170,-562.15929892,8.998e-05,2]
[405771425,1771291839179,-338.26097521,8.998e-05,2]
[405771426,1771291839189,-500.0,8.998e-05,2]
[405771427,1771291839199,-500.0,8.998e-05,2]
[405771428,1771291839208,-500.0,8.998e-05,2]
[405771429,1771291839218,-500.0,8.998e-05,2]
[405771430,1771291839227,-394.8067118,8.998e-05,2]
[405771431,1771291839237,-510.13931315,8.998e-05,2]
[405771432,1771291839247,-274.25566717,8.998e-05,2]
[405771433,1771291839259,-250.0,8.998e-05,2]
[405771434,1771291839272,-912.49772934,8.999e-05,2]
[405771435,1771291839282,-1275.56756393,8.999e-05,2]
[405771436,1771291839295,-4128.9149,9e-05,2]
[405771437,1771291839314,-80036.0974,9e-05,2]
[405771438,1771291839325,-2500.0,9e-05,2]
[405771439,1771291839334,-6736.7294,9e-05,2]
[405771440,1771291839344,-1000.0,9.099e-05,2]
[405771441,1771291839354,-32100.0,9.178e-05,2]
[405771442,1771291839365,-1000.0,9.199e-05,2]
[405771443,1771291839375,-788.00311282,9.199e-05,2]
[405771444,1771291839386,-284.05492277,9.2e-05,2]
[405771445,1771291839395,-500.0,9.272e-05,2]
[405771446,1771291839405,-25740.4859,9.351e-05,2]
[405771447,1771291839415,-1491.60877764,9.412e-05,2]
[405771448,1771291839425,-500.0,9.546e-05,2]
[405771449,1771291839435,-253.64780415,9.679e-05,2]
[405771450,1771291839445,-196.06,9.732e-05,2]
[405771451,1771291839455,-1000.0,9.75e-05,2]
[405771452,1771291839464,-1680.0,9.787e-05,2]
[405771453,1771291839473,-420.0,9.788e-05,2]
[405771454,1771291839483,-300.0,9.788e-05,2]
[405771455,1771291839492,-255.0,9.788e-05,2]
[405771456,1771291839501,-706.0,9.815e-05,2]
[405771457,1771291839511,-254.8446435,9.815e-05,2]
[405771458,1771291839521,-500.0,9.82e-05,2]
[405771459,1771291839530,-1267.0,9.834e-05,2]
[405771460,1771291839539,-420.0,9.897e-05,2]
[405771461,1771291839549,-250.0,9.898e-05,2]
[405771462,1771291839558,-175.6,0.0001,2]
[405771463,1771291839568,-1099.53822571,0.0001,2]
[405771464,1771291839577,-151.0,0.0001,2]
[405771465,1771291839587,-151.0,0.0001,2]
[405771466,1771291839596,-151.0,0.0001,2]
[405771467,1771291839605,-151.0,0.0001,2]
[405771468,1771291839615,-151.0,0.0001,2]
[405771469,1771291839625,-151.0,0.0001,2]
[405771470,1771291839635,-151.0,0.0001,2]
[405771471,1771291839644,-151.0,0.0001,2]
[405771472,1771291839654,-151.0,0.0001,2]
[405771473,1771291839664,-151.0,0.0001,2]
[405771474,1771291839673,-151.0,0.0001,2]
[405771475,1771291839684,-151.0,0.0001,2]
[405771476,1771291839695,-151.0,0.0001,2]
[405771477,1771291839705,-151.0,0.0001,2]
[405771478,1771291839715,-151.0,0.0001,2]
[405771479,1771291839724,-151.0,0.0001,2]
[405771480,1771291839734,-151.0,0.0001,2]
[405771481,1771291839744,-151.0,0.0001,2]
[405771482,1771291839753,-151.0,0.0001,2]
[405771483,1771291839762,-151.0,0.0001,2]
[405771484,1771291839772,-274.0,0.0001,2]
[405771485,1771291839781,-274.0,0.0001,2]
[405771486,1771291839791,-276.7646508,0.0001,2]
[405771487,1771291839800,-679.1700837,0.0001,2]
[405771488,1771291839809,-679.1700837,0.0001,2]
[405771489,1771291839819,-9999.99,0.00010008,2]
[405771490,1771291839828,-500.0,0.00010094,2]
[405771491,1771291839839,-175.6,0.00010274,2]
[405771492,1771291839858,-500.0,0.00010368,2]
[405771493,1771291839871,-175.62,0.00010548,2]
[405771494,1771291839880,-500.0,0.00010642,2]
[405771495,1771291839890,-2351.0,0.00010765,2]
[405771496,1771291839899,-587.0,0.00010766,2]
[405771497,1771291839908,-433.0,0.00010766,2]
[405771498,1771291839918,-1030.76604432,0.000108,2]
[405771499,1771291839927,-587.0,0.00010886,2]
[405771500,1771291839937,-3564.7633801,0.000109,2]
[405771501,1771291839946,-3564.76338004,0.000109,2]
[405771502,1771291839956,-500.0,0.00010916,2]
[405771503,1771291839965,-838.24624755,0.00010924,2]
[405771504,1771291839975,-166.66,0.00010959,2]
[405771505,1771291839985,-299.99,0.00010973,2]
[405771506,1771291839995,-150.99,0.00010973,2]
[405771507,1771291840004,-500.0,0.00010973,2]
[405771508,1771291840013,-500.0,0.00010973,2]
[405771509,1771291840023,-500.0,0.00010973,2]
[405771510,1771291840033,-500.0,0.00010973,2]
[405771511,1771291840042,-503.06752739,0.00010973,2]
[405771512,1771291840052,-500.0,0.00010973,2]
[405771513,1771291840066,-501.16029055,0.00010973,2]
[405771514,1771291840075,-500.32111708,0.00010973,2]
[405771515,1771291840085,-500.0,0.00010973,2]
[405771516,1771291840095,-500.0,0.00010973,2]
[405771517,1771291840106,-6034.14269282,0.00011,2]
[405771518,1771291840115,-166.66,0.00011068,2]
[405771519,1771291840125,-200.0,0.00011072,2]
[405771520,1771291840135,-1433.34452447,0.00011099,2]
[405771521,1771291840145,-1433.34452441,0.00011099,2]
[405771522,1771291840155,-1433.34452441,0.00011099,2]
[405771523,1771291840165,-166.66,0.00011178,2]
[405771524,1771291840174,-500.0,0.0001119,2]
[405771525,1771291840183,-170.43295366,0.000112,2]
[405771526,1771291840193,-166.66,0.00011288,2]
[405771527,1771291840202,-166.66,0.00011397,2]
[405771528,1771291840212,-500.0,0.00011464,2]
[405771529,1771291840222,-3564.76338004,0.00011469,2]
[405771530,1771291840232,-166.66,0.00011507,2]
[405771531,1771291840241,-500.0,0.00011521,2]
[405771532,1771291840252,-1000.0,0.00011521,2]
[405771533,1771291840262,-1000.0,0.00011521,2]
[405771534,1771291840271,-643.23767655,0.00011521,2]
[405771535,1771291840281,-1000.0,0.00011521,2]
[405771536,1771291840290,-502.71949542,0.00011521,2]
[405771537,1771291840304,-196.06,0.00011678,2]
[405771538,1771291840313,-500.0,0.00011738,2]
[405771539,1771291840323,-250.0,0.00011757,2]
[405771540,1771291840332,-3292.0,0.00011842,2]
[405771541,1771291840342,-823.0,0.00011843,2]
[405771542,1771291840352,-736.0,0.00011843,2]
[405771543,1771291840362,-1433.34452441,0.00011915,2]
[405771544,1771291840374,-823.0,0.00011975,2]
[405771545,1771291840384,-500.0,0.00012012,2]
[405771546,1771291840393,-1500.0,0.00012068,2]
[405771547,1771291840403,-1500.0,0.00012068,2]
[405771548,1771291840412,-1500.0,0.00012068,2]
[405771549,1771291840422,-500.0,0.00012285,2]
[405771550,1771291840432,-1799.80965345,0.00012616,2]
[405771551,1771291840441,-2000.0,0.00012616,2]
[405771552,1771291840450,-368.72151799,0.00012616,2]
[405771553,1771291840460,-3564.76338004,0.00012755,2]
[405771554,1771291840469,-70181.97252511,0.000129,2]
[405771555,1771291840478,-1433.34452441,0.0001292,2]
[405771556,1771291840488,-76264.032882,0.00012966,2]
[405771557,1771291840498,-8890.0589599,0.00012966,2]
[405771558,1771291840507,-4609.0,0.00013026,2]
[405771559,1771291840517,-1152.0,0.00013027,2]
[405771560,1771291840526,-1252.0,0.00013027,2]
[405771561,1771291840536,-2500.0,0.00013164,2]
[405771562,1771291840545,-506.0,0.00013172,2]
[405771563,1771291840555,-10351.92431005,0.00013399,2]
[405771564,1771291840565,-2999.87979965,0.00013399,2]
[405771565,1771291840576,-1099.53822569,0.000134,2]
[405771566,1771291840586,-295.43107867,0.00013698,2]
[405771567,1771291840596,-500.0,0.00013698,2]
[405771568,1771291840606,-500.0,0.00013698,2]
[405771569,1771291840616,-500.0,0.00013698,2]
[405771570,1771291840628,-500.0,0.00013698,2]
[405771571,1771291840638,-500.0,0.00013698,2]
[405771572,1771291840648,-500.0,0.00013698,2]
[405771573,1771291840657,-500.0,0.00013698,2]
[405771574,1771291840666,-500.0,0.00013698,2]
[405771575,1771291840676,-500.0,0.00013698,2]
[405771576,1771291840685,-500.0,0.00013698,2]
[405771577,1771291840695,-500.0,0.00013698,2]
[405771578,1771291840705,-500.0,0.00013698,2]
[405771579,1771291840715,-500.0,0.00013698,2]
[405771580,1771291840724,-500.0,0.00013698,2]
[405771581,1771291840734,-500.0,0.00013698,2]
[405771582,1771291840744,-500.0,0.00013698,2]
[405771583,1771291840753,-500.0,0.00013698,2]
[405771584,1771291840762,-500.0,0.00013698,2]
[405771585,1771291840771,-500.0,0.00013698,2]
[405771586,1771291840781,-500.0,0.00013698,2]
[405771587,1771291840791,-500.0,0.00013698,2]
[405771588,1771291840800,-500.0,0.00013698,2]
[405771589,1771291840810,-500.0,0.00013698,2]
[405771590,1771291840819,-500.0,0.00013698,2]
[405771591,1771291840828,-500.0,0.00013698,2]
[405771592,1771291840837,-500.0,0.00013698,2]
[405771593,1771291840847,-500.0,0.00013698,2]
[405771594,1771291840857,-500.0,0.00013698,2]
[405771595,1771291840867,-500.0,0.00013698,2]
[405771596,1771291840877,-500.0,0.00013698,2]
[405771597,1771291840887,-517.86338915,0.00013698,2]
[405771598,1771291840901,-678.14,0.00013698,2]
[405771599,1771291840911,-678.14,0.00013698,2]
[405771600,1771291840921,-678.14,0.00013698,2]
[405771601,1771291840930,-678.14,0.00013698,2]
[405771602,1771291840940,-678.14,0.00013698,2]
[405771603,1771291840949,-678.14,0.00013698,2]
[405771604,1771291840959,-678.14,0.00013698,2]
[405771605,1771291840968,-678.14,0.00013698,2]
[405771606,1771291840977,-678.14,0.00013698,2]
[405771607,1771291840987,-678.14,0.00013698,2]
[405771608,1771291840996,-678.14,0.00013698,2]
[405771609,1771291841006,-678.14,0.00013698,2]
[405771610,1771291841015,-678.14,0.00013698,2]
[405771611,1771291841025,-678.14,0.00013698,2]
[405771612,1771291841035,-500.0,0.00013698,2]
[405771613,1771291841044,-545.5539696,0.00013698,2]
[405771614,1771291841054,-500.0,0.00013698,2]
[405771615,1771291841063,-500.0,0.00013698,2]
[405771616,1771291841072,-500.0,0.00013698,2]
[405771617,1771291841083,-500.0,0.00013698,2]
[405771618,1771291841095,-500.0,0.00013698,2]
[405771619,1771291841104,-1124.5,0.00013698,2]
[405771620,1771291841114,-1124.5,0.00013698,2]
[405771621,1771291841124,-1124.5,0.00013698,2]
[405771622,1771291841136,-1124.5,0.00013698,2]
[405771623,1771291841145,-1124.5,0.00013698,2]
[405771624,1771291841155,-1124.5,0.00013698,2]
[405771625,1771291841164,-1124.5,0.00013698,2]
[405771626,1771291841174,-1124.5,0.00013698,2]
[405771627,1771291841184,-1124.5,0.00013698,2]
[405771628,1771291841194,-1124.5,0.00013698,2]
[405771629,1771291841204,-1124.5,0.00013698,2]
[405771630,1771291841214,-1124.5,0.00013698,2]
[405771631,1771291841225,-1124.5,0.00013698,2]
[405771632,1771291841235,-1124.5,0.00013698,2]
[405771633,1771291841246,-915.21,0.00013698,2]
[405771634,1771291841256,-915.21,0.00013698,2]
[405771635,1771291841266,-915.21,0.00013698,2]
[405771636,1771291841277,-915.21,0.00013698,2]
[405771637,1771291841288,-915.21,0.00013698,2]
[405771638,1771291841302,-915.21,0.00013698,2]
[405771639,1771291841312,-915.21,0.00013698,2]
[405771640,1771291841323,-915.21,0.00013698,2]
[405771641,1771291841333,-915.21,0.00013698,2]
[405771642,1771291841344,-915.21,0.00013698,2]
[405771643,1771291841354,-915.21,0.00013698,2]
[405771644,1771291841364,-915.21,0.00013698,2]
[405771645,1771291841375,-183.2,0.00013699,2]
[405771646,1771291841385,-3000.0,0.00013712,2]
[405771647,1771291841396,-1471.46,0.00013858,2]
[405771648,1771291841405,-1600.0,0.00013885,2]
[405771649,1771291841415,-1433.34452441,0.00013925,2]
[405771650,1771291841426,-1471.46,0.00014041,2]
[405771651,1771291841436,-3564.76338004,0.00014042,2]
[405771652,1771291841445,-1471.46,0.00014223,2]
[405771653,1771291841456,-840.14056473,0.0001426,2]
[405771654,1771291841466,-240.377977,0.00014261,7]
[405771655,1771291841488,-814.106922,0.00014261,7]
[405771656,1771291841502,-6453.0,0.00014329,2]
[405771657,1771291841514,-1613.0,0.0001433,2]
[405771658,1771291841526,-915.21,0.00014345,2]
[405771659,1771291841537,-76264.032882,0.00014346,2]
[405771660,1771291841548,-7657.80137256,0.0001439,2]
[405771661,1771291841559,-1471.46,0.00014405,2]
[405771662,1771291841570,-1471.46,0.00014588,2]
[405771663,1771291841580,-151.0,0.00014634,2]
[405771664,1771291841592,-151.0,0.00014634,2]
[405771665,1771291841603,-151.0,0.00014634,2]
[405771666,1771291841614,-1471.46,0.0001477,2]
[405771667,1771291841625,-1433.34452441,0.0001493,2]
[405771668,1771291841636,-1471.46,0.00014952,2]
[405771669,1771291841647,-250.0,0.00015,2]
[405771670,1771291841658,-2055.27643085,0.00015,2]
[405771671,1771291841669,-8001.36137513,0.00015,2]
[405771672,1771291841680,-418.79114675,0.00015,2]
[405771673,1771291841691,-1471.46,0.00015135,2]
[405771674,1771291841702,-1517.64,0.000153,2]
[405771675,1771291841713,-1471.46,0.00015317,2]
[405771676,1771291841723,-3564.76338004,0.00015328,2]
[405771677,1771291841735,-569.874845,0.0001539,7]
[405771678,1771291841745,-509.55358079,0.000154,2]
[405771679,1771291841756,-1471.46,0.00015499,2]
[405771680,1771291841767,-1600.0,0.0001562,2]
[405771681,1771291841778,-1825.089375,0.00015636,7]
[405771682,1771291841789,-1471.46,0.00015682,2]
[405771683,1771291841799,-76264.032882,0.00015725,2]
[405771684,1771291841809,-1983.6402794,0.00015762,2]
[405771685,1771291841826,-9035.0,0.00015762,2]
[405771686,1771291841837,-2258.0,0.00015763,2]
[405771687,1771291841849,-2245.46908565,0.00015807,2]
[405771688,1771291841860,-177.062732,0.00015823,7]
[405771689,1771291841873,-1329.707973,0.00015823,7]
[405771690,1771291841884,-1471.46,0.00015864,2]
[405771691,1771291841896,-1500.0,0.00015931,2]
[405771692,1771291841907,-1433.34452441,0.00015936,2]
[405771693,1771291841919,-5016.72175524,0.0001596,2]
[405771694,1771291841931,-302.88716653,0.00016,2]
[405771695,1771291841943,-1471.46,0.00016046,2]
[405771696,1771291841954,-5000.00941589,0.000162,5]
[405771697,1771291841966,-1471.46,0.00016229,2]
[405771698,1771291841978,-200.0,0.0001634,2]
[405771699,1771291841990,-549.59276966,0.0001634,7]
[405771700,1771291842001,-173.53171403,0.00016384,2]
[405771701,1771291842014,-160.0,0.00016384,2]
[405771702,1771291842026,-442.6099732,0.00016385,2]
[405771703,1771291842038,-1471.46,0.00016411,2]
[405771704,1771291842050,-200.0,0.00016524,2]
[405771705,1771291842061,-1471.46,0.00016593,2]
[405771706,1771291842073,-3564.76338004,0.00016614,2]
[405771707,1771291842084,-1471.46,0.00016776,2]
[405771708,1771291842095,-500.0,0.00016778,2]
[405771709,1771291842107,-500.0,0.00016778,2]
[405771710,1771291842119,-500.0,0.00016778,2]
[405771711,1771291842130,-348.0,0.00016778,2]
[405771712,1771291842142,-1433.34452441,0.00016941,2]